fUSD/lending_fUSD_20251221
["ID","MTS","AMOUNT","RATE_DAILY","PERIOD"]
[399317835,1766290241622,-730.0,0.00016986,2]
[399317836,1766290241634,-1847.29706136,0.00016986,2]
[399317837,1766290241650,-671.44990857,0.00016986,2]
[399317838,1766290241690,-13580.83469265,0.00016986,2]
[399317839,1766290241699,-2000.0,0.00017,2]
[399317840,1766290241709,-250.0,0.00017,2]
[399317841,1766290241719,-24075.9143304,0.0001701,2]
[399317842,1766290241728,-5770.1259068,0.0001701,2]
[399317843,1766290241737,-47318.05886553,0.0001701,2]
[399317844,1766290241750,-884.79552283,0.0001701,2]
[399317845,1766290241761,-2451.658834,0.0001701,2]
[399317846,1766290241772,-1427.900885,0.0001701,2]
[399317847,1766290242700,-1.7e-07,0.0001701,2]
[399317849,1766290242975,-4334.78576873,0.0001701,2]
[399317851,1766290242988,-805.09598684,0.0001701,2]
[399317852,1766290242998,-4997.2,0.00017027,2]
[399317853,1766290243007,-621.23,0.00017231,2]
[399317854,1766290243016,-1000.0,0.00017521,2]
[399317855,1766290243026,-17406.16956464,0.00017768,2]
[399317856,1766290243035,-18396.12450581,0.00017846,2]
[399317857,1766290243045,-500.0,0.00017863,2]
[399317858,1766290243054,-500.0,0.0001846,2]
[399317859,1766290243064,-500.0,0.0001846,2]
[399317863,1766290243074,-500.0,0.0001846,2]
[399317864,1766290243407,-200.0,0.00018461,2]
[399317865,1766290243419,-1000.0,0.0001876,2]
[399317866,1766290243429,-150.98,0.000188,2]
[399317867,1766290243438,-150.98,0.000188,2]
[399317868,1766290243448,-1197.0,0.00018831,2]
[399317869,1766290243458,-911.0,0.00018831,2]
[399317870,1766290243467,-166.66,0.00018872,2]
[399317871,1766290243478,-150.98,0.0001899,2]
[399317872,1766290243488,-674.42250875,0.00019,2]
[399317873,1766290243498,-300.0,0.00019,2]
[399317874,1766290243508,-66899.42995772,0.00019,2]
[399317875,1766290243519,-1802.155794,0.00019,2]
[399317876,1766290243529,-4997.2,0.00019025,2]
[399317877,1766290243539,-24075.9143304,0.00019146,2]
[399317878,1766290243549,-1000.0,0.00019438,2]
[399317879,1766290243559,-604.4532209,0.00019564,2]
[399317880,1766290243569,-632.75,0.00019832,2]
[399317881,1766290243579,-1000.0,0.00019981,2]
[399317882,1766290243591,-229.83089871,0.0002,20]
[399317883,1766290243602,-150.98,0.00020103,2]
[399317884,1766290243612,-12768.02004,0.00020113,2]
[399317885,1766290243622,-1000.0,0.00020116,2]
[399317886,1766290243633,-1000.0,0.00020187,2]
[399317887,1766290243643,-1287.4891176,0.00020245,2]
[399317888,1766290243655,-500.0,0.00020384,2]
[399317889,1766290243666,-150.0,0.00020384,2]
[399317890,1766290243677,-500.0,0.00020384,2]
[399317891,1766290243694,-150.0,0.00020384,2]
[399317892,1766290243713,-500.0,0.00020384,2]
[399317893,1766290243725,-500.0,0.00020384,2]
[399317894,1766290243734,-150.0,0.00020384,2]
[399317895,1766290243743,-500.0,0.00020384,2]
[399317896,1766290243753,-715.0,0.00020384,2]
[399317897,1766290243762,-153.0048444,0.00020384,2]
[399317898,1766290243771,-500.0,0.00020384,2]
[399317899,1766290243782,-500.0,0.00020384,2]
[399317900,1766290243792,-500.0,0.00020384,2]
[399317901,1766290243801,-500.0,0.00020384,2]
[399317902,1766290243812,-203.03552105,0.00020384,2]
[399317903,1766290243822,-500.0,0.00020384,2]
[399317904,1766290243832,-150.0,0.00020384,2]
[399317905,1766290243841,-150.0,0.00020384,2]
[399317906,1766290243852,-155.6637864,0.00020384,2]
[399317907,1766290243863,-500.0,0.00020384,2]
[399317908,1766290243873,-150.0,0.00020384,2]
[399317909,1766290243882,-151.62002292,0.00020384,2]
[399317910,1766290243894,-150.0,0.00020384,2]
[399317911,1766290243905,-151.45388092,0.00020384,2]
[399317912,1766290243915,-150.0,0.00020384,2]
[399317913,1766290243925,-500.0,0.00020384,2]
[399317914,1766290243934,-150.0,0.00020384,2]
[399317915,1766290243943,-150.0,0.00020384,2]
[399317916,1766290243953,-150.0,0.00020384,2]
[399317917,1766290243962,-500.0,0.00020384,2]
[399317918,1766290243972,-474.0,0.00020384,2]
[399317919,1766290243981,-500.0,0.00020384,2]
[399317920,1766290243991,-150.0,0.00020384,2]
[399317921,1766290244000,-156.9709519,0.00020384,2]
[399317922,1766290244010,-150.0,0.00020384,2]
[399317923,1766290244020,-500.0,0.00020384,2]
[399317924,1766290244030,-500.0,0.00020384,2]
[399317925,1766290244040,-500.0,0.00020384,2]
[399317926,1766290244050,-500.0,0.00020384,2]
[399317927,1766290244060,-150.0,0.00020384,2]
[399317928,1766290244070,-688.0,0.00020384,2]
[399317929,1766290244080,-500.0,0.00020384,2]
[399317930,1766290244089,-150.0,0.00020384,2]
[399317931,1766290244099,-500.0,0.00020384,2]
[399317932,1766290244109,-150.0,0.00020384,2]
[399317933,1766290244123,-638.0,0.00020384,2]
[399317934,1766290244143,-153.52036112,0.00020515,2]
[399317935,1766290244153,-500.0,0.00020521,2]
[399317936,1766290244163,-217.88055935,0.00020521,2]
[399317937,1766290244173,-500.0,0.00020521,2]
[399317938,1766290244183,-150.0,0.00020521,2]
[399317939,1766290244192,-500.0,0.00020521,2]
[399317940,1766290244202,-500.0,0.00020521,2]
[399317941,1766290244212,-150.0,0.00020521,2]
[399317942,1766290244221,-500.0,0.00020521,2]
[399317943,1766290244230,-715.0,0.00020521,2]
[399317944,1766290244239,-500.0,0.00020521,2]
[399317945,1766290244248,-500.0,0.00020521,2]
[399317946,1766290244257,-500.0,0.00020521,2]
[399317947,1766290244267,-500.0,0.00020521,2]
[399317948,1766290244277,-500.0,0.00020521,2]
[399317949,1766290244286,-150.0,0.00020521,2]
[399317950,1766290244296,-150.0,0.00020521,2]
[399317951,1766290244305,-500.0,0.00020521,2]
[399317952,1766290244314,-150.0,0.00020521,2]
[399317953,1766290244324,-206.73241597,0.00020521,2]
[399317954,1766290244334,-150.0,0.00020521,2]
[399317955,1766290244344,-150.0,0.00020521,2]
[399317956,1766290244353,-500.0,0.00020521,2]
[399317957,1766290244363,-150.0,0.00020521,2]
[399317958,1766290244372,-150.0,0.00020521,2]
[399317959,1766290244382,-500.0,0.00020521,2]
[399317960,1766290244392,-500.0,0.00020521,2]
[399317961,1766290244401,-474.0,0.00020521,2]
[399317962,1766290244411,-150.0,0.00020521,2]
[399317963,1766290244420,-500.0,0.00020521,2]
[399317964,1766290244429,-500.0,0.00020521,2]
[399317965,1766290244438,-500.0,0.00020521,2]
[399317966,1766290244448,-500.0,0.00020521,2]
[399317967,1766290244457,-688.0,0.00020521,2]
[399317968,1766290244471,-500.0,0.00020521,2]
[399317969,1766290244483,-500.0,0.00020521,2]
[399317970,1766290244493,-150.0,0.00020521,2]
[399317971,1766290244502,-638.0,0.00020521,2]
[399317972,1766290244511,-500.0,0.00020658,2]
[399317973,1766290244520,-272.46378967,0.00020658,2]
[399317974,1766290244530,-150.0,0.00020658,2]
[399317975,1766290244540,-500.0,0.00020658,2]
[399317976,1766290244550,-500.0,0.00020658,2]
[399317977,1766290244560,-170.2039508,0.00020658,2]
[399317978,1766290244569,-500.0,0.00020658,2]
[399317979,1766290244578,-715.0,0.00020658,2]
[399317980,1766290244588,-500.0,0.00020658,2]
[399317981,1766290244598,-500.0,0.00020658,2]
[399317982,1766290244607,-252.61614044,0.00020658,2]
[399317983,1766290244616,-500.0,0.00020658,2]
[399317984,1766290244626,-500.0,0.00020658,2]
[399317985,1766290244635,-223.15728325,0.00020658,2]
[399317986,1766290244644,-150.0,0.00020658,2]
[399317987,1766290244654,-233.20071514,0.00020658,2]
[399317988,1766290244663,-150.0,0.00020658,2]
[399317989,1766290244672,-150.0,0.00020658,2]
[399317990,1766290244681,-150.0,0.00020658,2]
[399317991,1766290244691,-507.32824713,0.00020658,2]
[399317992,1766290244700,-209.21015055,0.00020658,2]
[399317993,1766290244709,-150.0,0.00020658,2]
[399317994,1766290244718,-500.0,0.00020658,2]
[399317995,1766290244728,-500.0,0.00020658,2]
[399317996,1766290244737,-255.7741324,0.00020658,2]
[399317997,1766290244747,-474.0,0.00020658,2]
[399317998,1766290244756,-500.0,0.00020658,2]
[399317999,1766290244765,-500.0,0.00020658,2]
[399318000,1766290244774,-500.0,0.00020658,2]
[399318001,1766290244784,-500.0,0.00020658,2]
[399318002,1766290244794,-500.0,0.00020658,2]
[399318003,1766290244804,-688.0,0.00020658,2]
[399318004,1766290244813,-500.0,0.00020658,2]
[399318005,1766290244822,-150.0,0.00020658,2]
[399318006,1766290244831,-638.0,0.00020658,2]
[399318007,1766290244841,-2000.0,0.000207,2]
[399318008,1766290244850,-17406.16956464,0.00020787,2]
[399318009,1766290244859,-1000.0,0.00020795,2]
[399318010,1766290244869,-500.0,0.00020795,2]
[399318011,1766290244878,-186.67882747,0.00020795,2]
[399318012,1766290244888,-500.0,0.00020795,2]
[399318013,1766290244897,-500.0,0.00020795,2]
[399318014,1766290244907,-500.0,0.00020795,2]
[399318015,1766290244916,-715.0,0.00020795,2]
[399318016,1766290244926,-500.0,0.00020795,2]
[399318017,1766290244935,-500.0,0.00020795,2]
[399318018,1766290244945,-500.0,0.00020795,2]
[399318019,1766290244954,-463.96955227,0.00020795,2]
[399318020,1766290244964,-167.39866338,0.00020795,2]
[399318021,1766290244974,-237.96567744,0.00020795,2]
[399318022,1766290244983,-150.82734528,0.00020795,2]
[399318023,1766290244993,-207.3149885,0.00020795,2]
[399318024,1766290245002,-160.24705155,0.00020795,2]
[399318025,1766290245012,-500.0,0.00020795,2]
[399318026,1766290245021,-500.0,0.00020795,2]
[399318027,1766290245030,-474.0,0.00020795,2]
[399318028,1766290245041,-452.2515866,0.00020795,2]
[399318029,1766290245050,-500.0,0.00020795,2]
[399318030,1766290245060,-500.0,0.00020795,2]
[399318031,1766290245069,-205.72226642,0.00020795,2]
[399318032,1766290245104,-294.27773358,0.00020795,2]
[399318033,1766290245113,-500.0,0.00020795,2]
[399318034,1766290245123,-221.67570795,0.00020795,2]
[399318035,1766290245134,-466.32429205,0.00020795,2]
[399318036,1766290245144,-500.0,0.00020795,2]
[399318037,1766290245153,-135.07738795,0.00020795,2]
[399318038,1766290245169,-14.92261205,0.00020795,2]
[399318039,1766290245179,-638.0,0.00020795,2]
[399318040,1766290245188,-2848.9303563,0.00020805,2]
[399318041,1766290245198,-866.39543189,0.00020853,2]
[399318042,1766290245207,-18396.12450581,0.00020853,2]
[399318043,1766290245216,-150.98,0.00020922,2]
[399318044,1766290245225,-500.0,0.00020932,2]
[399318045,1766290245235,-500.0,0.00020932,2]
[399318046,1766290245245,-328.43100459,0.00020932,2]
[399318047,1766290245254,-500.0,0.00020932,2]
[399318048,1766290245264,-715.0,0.00020932,2]
[399318049,1766290245274,-500.0,0.00020932,2]
[399318050,1766290245283,-500.0,0.00020932,2]
[399318051,1766290245293,-500.0,0.00020932,2]
[399318052,1766290245302,-500.0,0.00020932,2]
[399318053,1766290245311,-500.0,0.00020932,2]
[399318054,1766290245320,-474.0,0.00020932,2]
[399318055,1766290245330,-500.0,0.00020932,2]
[399318057,1766290245339,-500.0,0.00020932,2]
[399318058,1766290245348,-500.0,0.00020932,2]
[399318059,1766290245358,-688.0,0.00020932,2]
[399318060,1766290245367,-500.0,0.00020932,2]
[399318061,1766290245376,-500.0,0.00020932,2]
[399318062,1766290245387,-240.64119308,0.00020932,2]
[399318063,1766290245396,-638.0,0.00020932,2]
[399318064,1766290245406,-287.277653,0.00020967,2]
[399318065,1766290245416,-350.0,0.00021,2]
[399318066,1766290245425,-4997.2,0.00021022,2]
[399318067,1766290245435,-500.0,0.00021069,2]
[399318068,1766290245444,-500.0,0.00021069,2]
[399318069,1766290245454,-500.0,0.00021069,2]
[399318071,1766290245464,-715.0,0.00021069,2]
[399318072,1766290245474,-500.0,0.00021069,2]
[399318074,1766290245483,-500.0,0.00021069,2]
[399318075,1766290245494,-500.0,0.00021069,2]
[399318076,1766290245503,-500.0,0.00021069,2]
[399318077,1766290245513,-265.16707175,0.00021069,2]
[399318078,1766290245522,-474.0,0.00021069,2]
[399318079,1766290245532,-500.0,0.00021069,2]
[399318080,1766290245542,-500.0,0.00021069,2]
[399318081,1766290245551,-308.19288149,0.00021069,2]
[399318082,1766290245561,-688.0,0.00021069,2]
[399318083,1766290245571,-500.0,0.00021069,2]
[399318084,1766290245580,-500.0,0.00021069,2]
[399318085,1766290245590,-638.0,0.00021069,2]
[399318086,1766290245599,-331.1273539,0.00021206,2]
[399318087,1766290245609,-500.0,0.00021206,2]
[399318088,1766290245618,-500.0,0.00021206,2]
[399318089,1766290245628,-715.0,0.00021206,2]
[399318090,1766290245638,-500.0,0.00021206,2]
[399318091,1766290245647,-500.0,0.00021206,2]
[399318092,1766290245657,-500.0,0.00021206,2]
[399318093,1766290245666,-500.0,0.00021206,2]
[399318094,1766290245676,-474.0,0.00021206,2]
[399318095,1766290245686,-500.0,0.00021206,2]
[399318096,1766290245696,-341.22420527,0.00021206,2]
[399318097,1766290245708,-158.77579473,0.00021206,2]
[399318098,1766290245717,-346.1803376,0.00021206,2]
[399318099,1766290245729,-341.8196624,0.00021206,2]
[399318100,1766290245738,-271.06183853,0.00021206,2]
[399318101,1766290245748,-24.07850807,0.00021206,2]
[399318102,1766290245759,-475.92149193,0.00021206,2]
[399318103,1766290245769,-638.0,0.00021206,2]
[399318104,1766290245778,-1032.27970549,0.00021282,2]
[399318105,1766290245789,-23043.63462491,0.00021282,2]
[399318106,1766290245798,-500.0,0.00021343,2]
[399318107,1766290245902,-568.69580303,0.00021343,2]
[399318108,1766290245916,-715.0,0.00021343,2]
[399318109,1766290245925,-500.0,0.00021343,2]
[399318110,1766290245935,-500.0,0.00021343,2]
[399318111,1766290245946,-500.0,0.00021343,2]
[399318112,1766290245955,-312.31458564,0.00021343,2]
[399318113,1766290245964,-474.0,0.00021343,2]
[399318114,1766290245974,-500.0,0.00021343,2]
[399318115,1766290245985,-453.68455195,0.00021343,2]
[399318116,1766290245995,-688.0,0.00021343,2]
[399318117,1766290246005,-630.05295224,0.00021343,2]
[399318118,1766290246014,-638.0,0.00021343,2]
[399318119,1766290246026,-500.0,0.0002148,2]
[399318120,1766290246037,-715.0,0.0002148,2]
[399318121,1766290246047,-500.0,0.0002148,2]
[399318122,1766290246057,-500.0,0.0002148,2]
[399318123,1766290246068,-500.0,0.0002148,2]
[399318124,1766290246078,-474.0,0.0002148,2]
[399318125,1766290246089,-500.0,0.0002148,2]
[399318126,1766290246100,-688.0,0.0002148,2]
[399318127,1766290246110,-638.0,0.0002148,2]
[399318128,1766290246124,-151.43,0.00021545,2]
[399318129,1766290246135,-500.0,0.00021617,2]
[399318130,1766290246145,-715.0,0.00021617,2]
[399318131,1766290246154,-500.0,0.00021617,2]
[399318132,1766290246165,-500.0,0.00021617,2]
[399318133,1766290246174,-500.0,0.00021617,2]
[399318134,1766290246183,-474.0,0.00021617,2]
[399318135,1766290246193,-500.0,0.00021617,2]
[399318136,1766290246203,-688.0,0.00021617,2]
[399318137,1766290246212,-638.0,0.00021617,2]
[399318138,1766290246223,-500.0,0.00021754,2]
[399318139,1766290246233,-715.0,0.00021754,2]
[399318140,1766290246244,-500.0,0.00021754,2]
[399318141,1766290246266,-500.0,0.00021754,2]
[399318142,1766290246276,-500.0,0.00021754,2]
[399318143,1766290246286,-474.0,0.00021754,2]
[399318144,1766290246296,-500.0,0.00021754,2]
[399318145,1766290246306,-688.0,0.00021754,2]
[399318146,1766290246317,-638.0,0.00021754,2]
[399318147,1766290246327,-1000.0,0.00021798,2]
[399318148,1766290246338,-632.75,0.00021815,2]
[399318149,1766290246347,-186.33884617,0.00021831,2]
[399318151,1766290246360,-1010.66115383,0.00021831,2]
[399318152,1766290246369,-911.0,0.00021831,2]
[399318153,1766290246379,-500.0,0.00021891,2]
[399318154,1766290246388,-715.0,0.00021891,2]
[399318155,1766290246397,-500.0,0.00021891,2]
[399318156,1766290246407,-228.47884617,0.00021891,2]
[399318157,1766290246418,-179.38952584,0.00021891,2]
[399318158,1766290246427,-500.0,0.00021891,2]
[399318159,1766290246436,-474.0,0.00021891,2]
[399318160,1766290246446,-500.0,0.00021891,2]
[399318161,1766290246455,-688.0,0.00021891,2]
[399318162,1766290246464,-638.0,0.00021891,2]
[399318163,1766290246473,-5000.0,0.00021918,2]
[399318164,1766290246483,-500.0,0.00021918,2]
[399318165,1766290246492,-638.18,0.00022,14]
[399318166,1766290246502,-150.0,0.00022,2]
[399318167,1766290246512,-500.0,0.00022028,2]
[399318168,1766290246522,-715.0,0.00022028,2]
[399318169,1766290246532,-500.0,0.00022028,2]
[399318170,1766290246543,-417.77127482,0.00022028,2]
[399318171,1766290246552,-474.0,0.00022028,2]
[399318172,1766290246561,-500.0,0.00022028,2]
[399318173,1766290246571,-688.0,0.00022028,2]
[399318174,1766290246581,-638.0,0.00022028,2]
[399318175,1766290246590,-500.0,0.00022165,2]
[399318176,1766290246598,-715.0,0.00022165,2]
[399318177,1766290246607,-616.21153989,0.00022165,2]
[399318178,1766290246616,-474.0,0.00022165,2]
[399318179,1766290246625,-500.0,0.00022165,2]
[399318180,1766290246634,-688.0,0.00022165,2]
[399318181,1766290246643,-638.0,0.00022165,2]
[399318182,1766290246652,-500.0,0.00022302,2]
[399318183,1766290246661,-715.0,0.00022302,2]
[399318184,1766290246670,-474.0,0.00022302,2]
[399318185,1766290246679,-614.07479822,0.00022302,2]
[399318186,1766290246688,-688.0,0.00022302,2]
[399318187,1766290246696,-638.0,0.00022302,2]
[399318188,1766290246706,-500.0,0.00022439,2]
[399318189,1766290246715,-715.0,0.00022439,2]
[399318190,1766290246724,-474.0,0.00022439,2]
[399318191,1766290246733,-688.0,0.00022439,2]
[399318192,1766290246743,-638.0,0.00022439,2]
[399318193,1766290246754,-1046.43,0.00022487,2]
[399318194,1766290246763,-500.0,0.00022576,2]
[399318195,1766290246774,-715.0,0.00022576,2]
[399318196,1766290246785,-474.0,0.00022576,2]
[399318197,1766290246795,-688.0,0.00022576,2]
[399318198,1766290246804,-638.0,0.00022576,2]
[399318199,1766290246813,-394.24474848,0.00022713,2]
[399318200,1766290246822,-715.0,0.00022713,2]
[399318201,1766290246832,-474.0,0.00022713,2]
[399318202,1766290246841,-688.0,0.00022713,2]
[399318203,1766290246851,-638.0,0.00022713,2]
[399318204,1766290246860,-287.49596817,0.0002274,2]
[399318205,1766290246869,-715.0,0.0002285,2]
[399318206,1766290246880,-474.0,0.0002285,2]
[399318207,1766290246889,-688.0,0.0002285,2]
[399318208,1766290246898,-638.0,0.0002285,2]
[399318209,1766290246907,-715.0,0.00022987,2]
[399318210,1766290246916,-474.0,0.00022987,2]
[399318211,1766290246925,-688.0,0.00022987,2]
[399318212,1766290246935,-3308.0,0.00023003,2]
[399318213,1766290246944,-4997.2,0.0002302,2]
[399318214,1766290246954,-715.0,0.00023124,2]
[399318215,1766290246963,-474.0,0.00023124,2]
[399318216,1766290246972,-688.0,0.00023124,2]
[399318217,1766290246981,-715.0,0.00023261,2]
[399318218,1766290246991,-474.0,0.00023261,2]
[399318219,1766290246999,-688.0,0.00023261,2]
[399318220,1766290247009,-715.0,0.00023398,2]
[399318221,1766290247018,-474.0,0.00023398,2]
[399318222,1766290247027,-688.0,0.00023398,2]
[399318223,1766290247037,-24075.9143304,0.00023418,2]
[399318224,1766290247047,-604.4532209,0.00023431,2]
[399318225,1766290247056,-732.7587784,0.00023535,2]
[399318226,1766290247066,-495.30569166,0.00023535,2]
[399318227,1766290247075,-700.27587367,0.00023535,2]
[399318228,1766290247084,-211.66022363,0.00023669,2]
[399318229,1766290247093,-632.75,0.00023798,2]
[399318230,1766290247102,-17406.16956464,0.00023806,2]
[399318231,1766290247113,-18396.12450581,0.00023861,2]
[399318232,1766290247122,-2000.0,0.000244,2]
[399318233,1766290247131,-196.03,0.0002464,2]
[399318234,1766290247140,-274.27,0.00024658,2]
[399318235,1766290247150,-1000.0,0.00024658,2]
[399318236,1766290247159,-627.3,0.00024658,7]
[399318237,1766290247169,-545.355864,0.00024795,120]
[399318238,1766290247178,-5695.03202721,0.000248,2]
[399318239,1766290248050,-4139.35275217,0.000248,2]
[399318240,1766290248061,-1302.81008527,0.000248,2]
[399318241,1766290248072,-337.27249606,0.000248,2]
[399318242,1766290248090,-1164.99761564,0.000248,2]
[399318243,1766290248100,-4779.79456686,0.000248,2]
[399318244,1766290248138,-794.69200129,0.000248,2]
[399318245,1766290248149,-392.42322,0.000248,2]
[399318246,1766290248160,-412.05845751,0.000248,2]
[399318247,1766290248171,-38634.64285355,0.000248,2]
[399318248,1766290248559,-638.0,0.00022987,2]
[399318249,1766290248569,-638.0,0.00023124,2]
[399318250,1766290248579,-12942.90041072,0.000248,2]
[399318251,1766290248590,-582.0582955,0.000248,2]
[399318252,1766290248605,-1509.34266157,0.000248,2]
[399318253,1766290248616,-625.30763868,0.000248,2]
[399318254,1766290248627,-106555.55274809,0.000248,2]
[399318255,1766290248638,-299.4533811,0.000248,2]
[399318256,1766290248652,-431.69864103,0.000248,2]
[399318257,1766290248662,-2503.20420611,0.000248,2]
[399318258,1766290248673,-420.22282652,0.000248,2]
[399318259,1766290248686,-682.7185601,0.000248,2]
[399318260,1766290248697,-705.00959292,0.000248,2]
[399318261,1766290248707,-3605.53971555,0.000248,2]
[399318262,1766290248723,-1057.83701526,0.000248,2]
[399318263,1766290248734,-360.0026,0.000248,2]
[399318264,1766290248744,-606.553,0.000248,2]
[399318265,1766290248755,-10276.89826205,0.000248,2]
[399318267,1766290271593,-300.0,0.00011819,2]
[399318268,1766290271619,-61.0,0.0001182,2]
[399318275,1766290303726,-240.01761772,0.00011583,2]
[399318278,1766290307902,-367.88526793,0.00011583,2]
[399318279,1766290309404,-174.7512689,0.00011583,2]
[399318286,1766290313471,-51.08184545,0.00011583,2]
[399318287,1766290313494,-154.17828251,0.00011819,2]
[399318290,1766290316415,-257.8235618,0.00011819,2]
[399318291,1766290316439,-41.29657339,0.00011819,2]
[399318292,1766290319707,-182.31019247,0.00011819,2]
[399318305,1766290393492,-365.66364293,0.0001173,2]
[399318308,1766290438457,-29.20518556,0.0001173,2]
[399318309,1766290438489,-137.46862678,0.0001173,2]
[399318310,1766290441315,-218.50188441,0.0001173,2]
[399318311,1766290444201,-135.71791151,0.0001173,2]
[399318312,1766290444224,-133.51599056,0.0001173,2]
[399318313,1766290446727,-300.01028343,0.0001173,2]
[399318314,1766290448902,-166.48508081,0.0001173,2]
[399318315,1766290452341,-363.53852109,0.0001173,2]
[399318316,1766290454250,-164.3059897,0.0001173,2]
[399318317,1766290457206,-257.71568883,0.0001173,2]
[399318319,1766290461539,-437.45261115,0.0001173,2]
[399318320,1766290463396,-170.87836276,0.0001173,2]
[399318321,1766290464458,-238.21287365,0.0001173,2]
[399318322,1766290467135,-255.2181907,0.0001173,2]
[399318323,1766290469683,-300.0,0.0001173,2]
[399318325,1766290475470,-426.5448326,0.0001173,2]
[399318327,1766290477962,-362.74421901,0.0001173,2]
[399318328,1766290480055,-243.50151897,0.0001173,2]
[399318330,1766290485824,-1150.03747858,0.0001173,2]
[399318333,1766290487607,-284.76491919,0.0001173,2]
[399318334,1766290491349,-200.0,0.0001173,2]
[399318335,1766290493586,-248.79402534,0.0001173,2]
[399318336,1766290495174,-202.20029535,0.0001173,2]
[399318337,1766290497888,-202.03645351,0.0001173,2]
[399318338,1766290500294,-307.091974,0.0001173,2]
[399318339,1766290503020,-300.0,0.0001173,2]
[399318340,1766290505719,-276.49776794,0.0001173,2]
[399318343,1766290509966,-258.0129793,0.0001173,2]
[399318344,1766290516946,-270.34811253,0.0001173,2]
[399318346,1766290519704,-178.59647719,0.0001173,2]
[399318347,1766290523603,-179.20601753,0.0001173,2]
[399318348,1766290526623,-152.59038312,0.0001173,2]
[399318349,1766290531998,-259.21871866,0.0001173,2]
[399318350,1766290537067,-164.95514969,0.0001173,2]
[399318351,1766290539826,-295.42528198,0.0001173,2]
[399318353,1766290542250,-278.75097827,0.0001173,2]
[399318354,1766290545046,-418.69673778,0.0001173,2]
[399318361,1766290575926,-28.52791388,0.0001173,2]
[399318362,1766290575948,-128.00332822,0.0001173,2]
[399318363,1766290579973,-199.78895358,0.0001173,2]
[399318364,1766290579995,-127.23330896,0.00011774,2]
[399318371,1766290693484,-297.40961688,0.0001173,2]
[399318375,1766290707881,-48.10060804,0.0001173,2]
[399318376,1766290707913,-405.20651831,0.0001173,2]
[399318378,1766290710434,-230.96896078,0.0001173,2]
[399318381,1766290713572,-153.22696793,0.0001173,2]
[399318382,1766290715553,-154.65696326,0.0001173,2]
[399318383,1766290718829,-191.41489507,0.0001173,2]
[399318384,1766290720968,-338.14115377,0.0001173,2]
[399318385,1766290725150,-307.55340669,0.0001173,2]
[399318386,1766290726335,-248.81349029,0.0001173,2]
[399318387,1766290728344,-249.12211845,0.0001173,2]
[399318391,1766290732011,-246.05689094,0.0001173,2]
[399318393,1766290734045,-159.40377013,0.0001173,2]
[399318394,1766290736817,-152.85082921,0.0001173,2]
[399318396,1766290741009,-281.5019812,0.0001173,2]
[399318398,1766290743094,-173.31412905,0.0001173,2]
[399318399,1766290747943,-194.25347522,0.0001173,2]
[399318400,1766290749464,-311.89100675,0.0001173,2]
[399318401,1766290751325,-262.43510493,0.0001173,2]
[399318402,1766290756113,-411.14805633,0.0001173,2]
[399318403,1766290758861,-235.8868,0.0001173,2]
[399318404,1766290760339,-252.71897853,0.0001173,2]
[399318405,1766290764096,-183.75773148,0.0001173,2]
[399318407,1766290767251,-297.43605432,0.0001173,2]
[399318408,1766290772007,-253.74823937,0.0001173,2]
[399318409,1766290774238,-206.21057752,0.0001173,2]